[Event "IIe Tournoi de GMI du C'Chartres Echecs"]
[Site "Chartres, France"]
[Date "2021.05.21"]
[Round "9.5"]
[White "David, Alberto"]
[Black "Duboue, Peio"]
[Result "1-0"]
[TimeControl "5400+30"]
[WhiteTitle "GM"]
[BlackTitle "FM"]
[WhiteElo "2517"]
[BlackElo "2431"]

1. e4 {[%clk 01:30:49]} {[%emt 00:00:10]} e5 {[%clk 01:30:57]} {[%emt
00:00:04]} 2. Nf3 {[%clk 01:31:13]} {[%emt 00:00:05]} Nc6 {[%clk 01:31:25]}
{[%emt 00:00:02]} 3. Bb5 {[%clk 01:31:26]} {[%emt 00:00:17]} g6 {[%clk
01:31:52]} {[%emt 00:00:03]} 4. c3 {[%clk 01:31:41]} {[%emt 00:00:15]} a6
{[%clk 01:32:11]} {[%emt 00:00:12]} 5. Ba4 {[%clk 01:32:06]} {[%emt 00:00:05]}
Bg7 {[%clk 01:32:36]} {[%emt 00:00:04]} 6. d4 {[%clk 01:32:23]} {[%emt
00:00:13]} exd4 {[%clk 01:33:00]} {[%emt 00:00:06]} 7. cxd4 {[%clk 01:32:48]}
{[%emt 00:00:05]} b5 {[%clk 01:33:27]} {[%emt 00:00:04]} 8. Bb3 {[%clk
01:32:28]} {[%emt 00:00:50]} Nge7 {[%clk 01:33:01]} {[%emt 00:00:56]} 9. a4
{[%clk 01:28:47]} {[%emt 00:04:11]} b4 {[%clk 01:22:08]} {[%emt 00:11:23]} 10.
a5 {[%clk 01:24:54]} {[%emt 00:04:23]} d5 {[%clk 01:20:18]} {[%emt 00:02:20]}
11. exd5 {[%clk 01:21:16]} {[%emt 00:04:08]} Nxd5 {[%clk 01:20:42]} {[%emt
00:00:06]} 12. Bg5 {[%clk 01:16:48]} {[%emt 00:04:58]} Nf6 {[%clk 01:17:55]}
{[%emt 00:03:17]} 13. Ba4 {[%clk 00:57:31]} {[%emt 00:19:47]} Bd7 {[%clk
01:16:35]} {[%emt 00:01:50]} 14. Ne5 {[%clk 00:57:20]} {[%emt 00:00:41]} Nb8
{[%clk 01:04:06]} {[%emt 00:12:59]} 15. Bxd7+ {[%clk 00:39:42]} {[%emt
00:18:08]} Nbxd7 {[%clk 01:04:31]} {[%emt 00:00:05]} 16. Nc6 {[%clk 00:40:08]}
{[%emt 00:00:04]} Qc8 {[%clk 01:04:57]} {[%emt 00:00:03]} 17. O-O {[%clk
00:38:28]} {[%emt 00:02:09]} Qb7 {[%clk 01:01:06]} {[%emt 00:04:22]} 18. Re1+
{[%clk 00:31:31]} {[%emt 00:07:27]} Kf8 {[%clk 01:01:31]} {[%emt 00:00:05]} 19.
Qf3 {[%clk 00:31:55]} {[%emt 00:00:06]} Qb5 {[%clk 00:54:11]} {[%emt 00:07:51]}
20. Bd2 {[%clk 00:30:31]} {[%emt 00:01:54]} h5 {[%clk 00:50:21]} {[%emt
00:04:20]} 21. Bxb4+ {[%clk 00:30:01]} {[%emt 00:01:00]} Kg8 {[%clk 00:50:45]}
{[%emt 00:00:06]} 22. Nc3 {[%clk 00:30:09]} {[%emt 00:00:22]} Qg5 {[%clk
00:50:32]} {[%emt 00:00:43]} 23. h3 {[%clk 00:18:58]} {[%emt 00:11:40]} Kh7
{[%clk 00:49:47]} {[%emt 00:01:16]} 24. Be7 {[%clk 00:19:22]} {[%emt 00:00:06]}
Rhe8 {[%clk 00:42:11]} {[%emt 00:08:06]} 25. Re5 {[%clk 00:18:09]} {[%emt
00:01:43]} Qh6 {[%clk 00:40:50]} {[%emt 00:01:51]} 26. Re2 {[%clk 00:18:32]}
{[%emt 00:00:07]} Kg8 {[%clk 00:39:00]} {[%emt 00:02:20]} 27. Rae1 {[%clk
00:18:02]} {[%emt 00:01:00]} g5 {[%clk 00:37:26]} {[%emt 00:02:04]} 28. Bxf6
{[%clk 00:13:35]} {[%emt 00:04:57]} Nxf6 {[%clk 00:36:43]} {[%emt 00:01:13]} 29.
Nd5 {[%clk 00:12:30]} {[%emt 00:01:35]} Rxe2 {[%clk 00:33:24]} {[%emt
00:03:49]} 30. Rxe2 {[%clk 00:12:19]} {[%emt 00:00:40]} Nxd5 {[%clk 00:31:28]}
{[%emt 00:02:26]} 31. Qxd5 {[%clk 00:12:32]} {[%emt 00:00:17]} Rf8 {[%clk
00:31:16]} {[%emt 00:00:43]} 32. b4 {[%clk 00:10:44]} {[%emt 00:02:18]} g4
{[%clk 00:30:53]} {[%emt 00:00:53]} 33. h4 {[%clk 00:09:06]} {[%emt 00:02:08]}
Qc1+ {[%clk 00:28:35]} {[%emt 00:02:48]} 34. Kh2 {[%clk 00:09:31]} {[%emt
00:00:04]} Bf6 {[%clk 00:26:38]} {[%emt 00:02:27]} 35. g3 {[%clk 00:09:47]}
{[%emt 00:00:13]} Qf1 {[%clk 00:25:16]} {[%emt 00:01:53]} 36. Qe4 {[%clk
00:10:00]} {[%emt 00:00:17]} Kg7 {[%clk 00:25:00]} {[%emt 00:00:46]} 37. Rc2
{[%clk 00:08:50]} {[%emt 00:01:40]} Qb1 {[%clk 00:23:58]} {[%emt 00:01:33]} 38.
Re2 {[%clk 00:08:06]} {[%emt 00:01:15]} Qf1 {[%clk 00:24:25]} {[%emt 00:00:03]}
39. Qe3 {[%clk 00:07:58]} {[%emt 00:00:37]} Rh8 {[%clk 00:22:46]} {[%emt
00:02:08]} 40. Qd2 {[%clk 00:07:03]} {[%emt 00:01:25]} Rh6 {[%clk 00:22:34]}
{[%emt 00:00:43]} 41. d5 {[%clk 00:04:40]} {[%emt 00:02:53]} Rg6 {[%clk
00:12:30]} {[%emt 00:10:34]} 42. Qe1 {[%clk 00:04:19]} {[%emt 00:00:51]} Qh3+
{[%clk 00:12:48]} {[%emt 00:00:12]} 43. Kg1 {[%clk 00:04:47]} {[%emt 00:00:03]}
Bxh4 {[%clk 00:13:01]} {[%emt 00:00:17]} 44. gxh4 {[%clk 00:05:01]} {[%emt
00:00:16]} g3 {[%clk 00:12:55]} {[%emt 00:00:36]} 45. fxg3 {[%clk 00:05:15]}
{[%emt 00:00:15]} Qxh4 {[%clk 00:13:08]} {[%emt 00:00:16]} 46. Rg2 {[%clk
00:04:44]} {[%emt 00:01:00]} Qh3 {[%clk 00:12:22]} {[%emt 00:01:17]} 47. Qe5+
{[%clk 00:04:29]} {[%emt 00:00:45]} Kh7 {[%clk 00:10:48]} {[%emt 00:02:04]} 48.
Ne7 {[%clk 00:04:26]} {[%emt 00:00:33]} Rd6 {[%clk 00:10:35]} {[%emt 00:00:44]}
49. Rh2 {[%clk 00:04:27]} {[%emt 00:00:29]} 1-0